[Event "Early-Titled-Tuesday-Blitz-February-06-2024"]
[Site "Chess.com"]
[Date "2024.02.06"]
[Round "2"]
[White "RobertoJBM"]
[Black "YouJustFoundYourGodfather"]
[Result "1-0"]
[WhiteElo "2812"]
[BlackElo "2565"]
[TimeControl "180+1"]
[EndTime "8:18:03 PST"]
[Termination "RobertoJBM won by resignation"]

1. d4 {[%clk 0:02:56.9]} 1... e6 {[%clk 0:02:58.1]} 2. Nf3 {[%clk 0:02:55.1]}
2... b6 {[%clk 0:02:57.5]} 3. e3 {[%clk 0:02:54.8]} 3... Bb7 {[%clk 0:02:55.7]}
4. Bd3 {[%clk 0:02:54.2]} 4... Nf6 {[%clk 0:02:55.1]} 5. O-O {[%clk 0:02:54.2]}
5... c5 {[%clk 0:02:53.6]} 6. Qe2 {[%clk 0:02:52.7]} 6... Nc6 {[%clk 0:02:52.3]}
7. c3 {[%clk 0:02:52.6]} 7... d5 {[%clk 0:02:51.1]} 8. Nbd2 {[%clk 0:02:52.1]}
8... Be7 {[%clk 0:02:44.8]} 9. dxc5 {[%clk 0:02:50.6]} 9... bxc5 {[%clk
0:02:42.2]} 10. e4 {[%clk 0:02:50.7]} 10... c4 {[%clk 0:02:42.9]} 11. Bc2 {[%clk
0:02:48.5]} 11... O-O {[%clk 0:02:43.6]} 12. Rd1 {[%clk 0:02:41.6]} 12... Qc7
{[%clk 0:02:35.9]} 13. exd5 {[%clk 0:02:39.4]} 13... exd5 {[%clk 0:02:35.5]} 14.
Nf1 {[%clk 0:02:39.2]} 14... Rfe8 {[%clk 0:02:34.4]} 15. Be3 {[%clk 0:02:36.9]}
15... Rad8 {[%clk 0:02:16.8]} 16. Nd4 {[%clk 0:02:32.1]} 16... Bc5 {[%clk
0:01:58.7]} 17. Qf3 {[%clk 0:01:59.4]} 17... Ne5 {[%clk 0:01:48.2]} 18. Qg3
{[%clk 0:01:56.1]} 18... Qb6 {[%clk 0:01:41.5]} 19. Nf5 {[%clk 0:01:49.9]} 19...
Ng6 {[%clk 0:01:39.1]} 20. Bxc5 {[%clk 0:01:48.7]} 20... Qxc5 {[%clk 0:01:40]}
21. Nd4 {[%clk 0:01:43.4]} 21... Qb6 {[%clk 0:01:24.1]} 22. Rab1 {[%clk
0:01:41.7]} 22... Bc8 {[%clk 0:01:19]} 23. Ne3 {[%clk 0:01:38.5]} 23... Ne4
{[%clk 0:00:57.6]} 24. Bxe4 {[%clk 0:01:21.1]} 24... Rxe4 {[%clk 0:00:58.5]} 25.
h3 {[%clk 0:01:01.5]} 25... Nf4 {[%clk 0:00:43.3]} 26. Rd2 {[%clk 0:00:50.9]}
26... Bb7 {[%clk 0:00:28]} 27. Nef5 {[%clk 0:00:37]} 27... Qf6 {[%clk
0:00:11.3]} 28. f3 {[%clk 0:00:26.4]} 28... Nh5 {[%clk 0:00:03.1]} 29. Qc7
{[%clk 0:00:23.3]} 29... Ree8 {[%clk 0:00:02.6]} 30. Qxb7 {[%clk 0:00:20.5]}
30... Qg5 {[%clk 0:00:03.1]} 31. Rbd1 {[%clk 0:00:18.3]} 31... Nf4 {[%clk
0:00:03.6]} 32. Kh2 {[%clk 0:00:17.1]} 32... Nd3 {[%clk 0:00:02]} 33. Qc7 {[%clk
0:00:14]} 33... g6 {[%clk 0:00:02.7]} 34. Qg3 {[%clk 0:00:13.7]} 34... Qf6
{[%clk 0:00:02.8]} 35. Nh6+ {[%clk 0:00:11.8]} 35... Kg7 {[%clk 0:00:03.5]} 36.
Ng4 {[%clk 0:00:12.7]} 36... Qg5 {[%clk 0:00:03.5]} 37. Nf2 {[%clk 0:00:12.7]}
37... Qxg3+ {[%clk 0:00:01.4]} 38. Kxg3 {[%clk 0:00:12.8]} 38... Nc5 {[%clk
0:00:02]} 39. Kh2 {[%clk 0:00:12.6]} 39... f5 {[%clk 0:00:02.6]} 40. Kg1 {[%clk
0:00:12.9]} 40... Kf6 {[%clk 0:00:03]} 41. Kf1 {[%clk 0:00:13.4]} 41... Rb8
{[%clk 0:00:01.8]} 42. Re1 {[%clk 0:00:13.5]} 42... Red8 {[%clk 0:00:01.6]} 43.
Ree2 {[%clk 0:00:12.4]} 43... Rb5 {[%clk 0:00:01.3]} 44. Nxb5 {[%clk 0:00:11.4]}
1-0

[Event "Early-Titled-Tuesday-Blitz-February-06-2024"]
[Site "Chess.com"]
[Date "2024.02.06"]
[Round "2"]
[White "Rurep26"]
[Black "OneTrickPony_82"]
[Result "1-0"]
[WhiteElo "2767"]
[BlackElo "2545"]
[TimeControl "180+1"]
[EndTime "8:18:05 PST"]
[Termination "Rurep26 won by resignation"]

1. d4 {[%clk 0:03:00.9]} 1... Nf6 {[%clk 0:02:59.2]} 2. Bf4 {[%clk 0:02:59.9]}
2... d5 {[%clk 0:02:58.9]} 3. e3 {[%clk 0:02:59.9]} 3... c5 {[%clk 0:02:59]} 4.
Nd2 {[%clk 0:03:00.4]} 4... Nc6 {[%clk 0:02:58.8]} 5. c3 {[%clk 0:03:00.6]} 5...
Bf5 {[%clk 0:02:56.8]} 6. Qb3 {[%clk 0:02:58.6]} 6... Qd7 {[%clk 0:02:46.6]} 7.
Ngf3 {[%clk 0:02:55.7]} 7... c4 {[%clk 0:02:44.9]} 8. Qd1 {[%clk 0:02:55]} 8...
e6 {[%clk 0:02:43.9]} 9. Be2 {[%clk 0:02:53.7]} 9... Bd6 {[%clk 0:02:30.7]} 10.
O-O {[%clk 0:02:52.7]} 10... O-O {[%clk 0:02:29.2]} 11. b3 {[%clk 0:02:44.2]}
11... b5 {[%clk 0:02:25]} 12. a4 {[%clk 0:02:43.6]} 12... a6 {[%clk 0:02:25.1]}
13. Bxd6 {[%clk 0:02:33.2]} 13... Qxd6 {[%clk 0:02:25]} 14. axb5 {[%clk
0:02:32.5]} 14... axb5 {[%clk 0:02:24.3]} 15. b4 {[%clk 0:02:33.4]} 15... h6
{[%clk 0:02:16.2]} 16. h3 {[%clk 0:02:28.9]} 16... Bh7 {[%clk 0:02:02.6]} 17.
Qc1 {[%clk 0:02:24]} 17... Nd7 {[%clk 0:01:58]} 18. Bd1 {[%clk 0:02:13.5]} 18...
Nb6 {[%clk 0:01:57]} 19. Bc2 {[%clk 0:02:11.3]} 19... Rxa1 {[%clk 0:01:56]} 20.
Bxh7+ {[%clk 0:02:10.3]} 20... Kxh7 {[%clk 0:01:56.2]} 21. Qxa1 {[%clk
0:02:11.1]} 21... Na4 {[%clk 0:01:55]} 22. e4 {[%clk 0:02:10.1]} 22... Qf4
{[%clk 0:01:51.2]} 23. Re1 {[%clk 0:02:07.1]} 23... Ra8 {[%clk 0:01:33.8]} 24.
Qc1 {[%clk 0:02:02.3]} 24... g6 {[%clk 0:01:15.3]} 25. g3 {[%clk 0:01:54]} 25...
Qf6 {[%clk 0:01:11.5]} 26. Kg2 {[%clk 0:01:53.8]} 26... Kg7 {[%clk 0:01:10.9]}
27. Nf1 {[%clk 0:01:49.3]} 27... dxe4 {[%clk 0:01:07.9]} 28. Rxe4 {[%clk
0:01:47.4]} 28... Ne7 {[%clk 0:01:06.1]} 29. Ne5 {[%clk 0:01:45.4]} 29... Nd5
{[%clk 0:01:02.7]} 30. h4 {[%clk 0:01:31.2]} 30... Naxc3 {[%clk 0:01:02.4]} 31.
Ng4 {[%clk 0:01:27.6]} 31... Qf5 {[%clk 0:00:45]} 32. Qxh6+ {[%clk 0:01:24.6]}
32... Kg8 {[%clk 0:00:45]} 33. Re5 {[%clk 0:01:05.8]} 33... Qxg4 {[%clk
0:00:38.9]} 34. Nh2 {[%clk 0:01:06.4]} 34... Qxd4 {[%clk 0:00:36.5]} 35. Nf3
{[%clk 0:01:03.1]} 35... Qb6 {[%clk 0:00:20.4]} 36. Ng5 {[%clk 0:00:57.6]} 36...
Nf6 {[%clk 0:00:20.3]} 37. Rxe6 {[%clk 0:00:56.3]} 37... Qb7+ {[%clk 0:00:19.4]}
38. f3 {[%clk 0:00:30.9]} 38... fxe6 {[%clk 0:00:18.7]} 39. Nxe6 {[%clk
0:00:31]} 39... Ra2+ {[%clk 0:00:17]} 40. Kh3 {[%clk 0:00:30.5]} 40... Qf7
{[%clk 0:00:17.6]} 41. Qe3 {[%clk 0:00:21.1]} 41... Ncd5 {[%clk 0:00:17.6]} 42.
Qe5 {[%clk 0:00:20.7]} 42... Ra6 {[%clk 0:00:15.2]} 43. Qb8+ {[%clk 0:00:20.3]}
43... Kh7 {[%clk 0:00:15.2]} 44. Ng5+ {[%clk 0:00:19.9]} 44... Kg7 {[%clk
0:00:15.9]} 45. Nxf7 {[%clk 0:00:20.4]} 45... Kxf7 {[%clk 0:00:16.7]} 46. Qb7+
{[%clk 0:00:20.6]} 46... Ke6 {[%clk 0:00:14]} 47. Qxa6+ {[%clk 0:00:20.9]} 47...
Ke5 {[%clk 0:00:12.8]} 48. Qxb5 {[%clk 0:00:21.2]} 48... Kd4 {[%clk 0:00:13.3]}
49. Qc5+ {[%clk 0:00:20.6]} 49... Kd3 {[%clk 0:00:13.8]} 50. b5 {[%clk
0:00:20.8]} 50... c3 {[%clk 0:00:14.4]} 51. b6 {[%clk 0:00:21.2]} 51... Nxb6
{[%clk 0:00:12.4]} 52. Qxb6 {[%clk 0:00:22.1]} 52... Nd5 {[%clk 0:00:12.9]} 53.
Qb5+ {[%clk 0:00:21.5]} 53... Kd4 {[%clk 0:00:12.9]} 54. Qe2 {[%clk 0:00:18.9]}
1-0

[Event "Early-Titled-Tuesday-Blitz-February-06-2024"]
[Site "Chess.com"]
[Date "2024.02.06"]
[Round "2"]
[White "pfalcon1949"]
[Black "BJthechessgod"]
[Result "0-1"]
[WhiteElo "1943"]
[BlackElo "2408"]
[TimeControl "180+1"]
[EndTime "8:18:07 PST"]
[Termination "BJthechessgod won by checkmate"]

1. e4 {[%clk 0:03:00.9]} 1... c5 {[%clk 0:02:56]} 2. Nf3 {[%clk 0:03:00.5]} 2...
e6 {[%clk 0:02:56.4]} 3. d4 {[%clk 0:03:00.9]} 3... cxd4 {[%clk 0:02:57.3]} 4.
Nxd4 {[%clk 0:03:00.9]} 4... Nc6 {[%clk 0:02:58.1]} 5. Nc3 {[%clk 0:02:59.6]}
5... Qc7 {[%clk 0:02:58.7]} 6. a3 {[%clk 0:02:58.6]} 6... a6 {[%clk 0:02:59.1]}
7. Be3 {[%clk 0:02:58]} 7... b5 {[%clk 0:02:57.6]} 8. Qf3 {[%clk 0:02:57.1]}
8... Bb7 {[%clk 0:02:57.5]} 9. Bd3 {[%clk 0:02:56.7]} 9... Nf6 {[%clk
0:02:52.8]} 10. O-O {[%clk 0:02:46.7]} 10... Ne5 {[%clk 0:02:46.7]} 11. Qg3
{[%clk 0:02:34.6]} 11... d6 {[%clk 0:02:42.8]} 12. Rae1 {[%clk 0:02:30.4]} 12...
h5 {[%clk 0:02:36.5]} 13. f4 {[%clk 0:02:25.4]} 13... Neg4 {[%clk 0:02:29.4]}
14. h3 {[%clk 0:02:18.5]} 14... h4 {[%clk 0:02:25.9]} 15. Qf3 {[%clk 0:02:06.9]}
15... Nxe3 {[%clk 0:02:24]} 16. Qxe3 {[%clk 0:02:04.4]} 16... Nh5 {[%clk
0:01:50.4]} 17. Nd5 {[%clk 0:01:40.8]} 17... exd5 {[%clk 0:01:07.1]} 18. exd5+
{[%clk 0:01:41.7]} 18... Be7 {[%clk 0:01:07.7]} 19. Nf5 {[%clk 0:01:25.1]} 19...
Bxd5 {[%clk 0:01:02.7]} 20. Nxe7 {[%clk 0:01:22.1]} 20... Be6 {[%clk 0:01:00.7]}
21. Nd5 {[%clk 0:01:10.7]} 21... Qb7 {[%clk 0:00:38.9]} 22. Nb6 {[%clk
0:01:04.7]} 22... Rb8 {[%clk 0:00:37.6]} 23. f5 {[%clk 0:00:50.2]} 23... Qxb6
{[%clk 0:00:33]} 24. fxe6 {[%clk 0:00:50.1]} 24... f6 {[%clk 0:00:19.4]} 25.
Bg6+ {[%clk 0:00:47.1]} 25... Ke7 {[%clk 0:00:19.7]} 26. Qxb6 {[%clk 0:00:42.6]}
26... Rxb6 {[%clk 0:00:19.8]} 27. Bxh5 {[%clk 0:00:40.3]} 27... Rxh5 {[%clk
0:00:19.8]} 28. Rf2 {[%clk 0:00:39.6]} 28... Re5 {[%clk 0:00:19.3]} 29. Rfe2
{[%clk 0:00:39.5]} 29... d5 {[%clk 0:00:18.8]} 30. Rxe5 {[%clk 0:00:38.5]} 30...
fxe5 {[%clk 0:00:19]} 31. Rxe5 {[%clk 0:00:38.3]} 31... Rxe6 {[%clk 0:00:18.4]}
32. Rxd5 {[%clk 0:00:38.5]} 32... Re1+ {[%clk 0:00:18.4]} 33. Kh2 {[%clk
0:00:37.9]} 33... Re2 {[%clk 0:00:18.5]} 34. Rc5 {[%clk 0:00:37]} 34... Kd6
{[%clk 0:00:18.7]} 35. Rc3 {[%clk 0:00:35.6]} 35... Kd5 {[%clk 0:00:18.7]} 36.
Kg1 {[%clk 0:00:35.2]} 36... Rd2 {[%clk 0:00:14.4]} 37. Kf1 {[%clk 0:00:35.5]}
37... Ke4 {[%clk 0:00:12.7]} 38. Rc6 {[%clk 0:00:30.6]} 38... Ke3 {[%clk
0:00:10.1]} 39. Re6+ {[%clk 0:00:29.7]} 39... Kf4 {[%clk 0:00:10.8]} 40. Rc6
{[%clk 0:00:28.3]} 40... Kg3 {[%clk 0:00:10.8]} 41. Rc3+ {[%clk 0:00:24.7]}
41... Kh2 {[%clk 0:00:09.7]} 42. Rc6 {[%clk 0:00:20.2]} 42... Rxg2 {[%clk
0:00:09.6]} 43. Rxa6 {[%clk 0:00:18.6]} 43... Rxc2 {[%clk 0:00:09.7]} 44. b4
{[%clk 0:00:14.6]} 44... g5 {[%clk 0:00:06.6]} 45. a4 {[%clk 0:00:12.9]} 45...
bxa4 {[%clk 0:00:06.3]} 46. Rxa4 {[%clk 0:00:13.1]} 46... Kxh3 {[%clk
0:00:06.7]} 47. b5 {[%clk 0:00:12.6]} 47... g4 {[%clk 0:00:07.1]} 48. Rb4 {[%clk
0:00:12.6]} 48... g3 {[%clk 0:00:07.1]} 49. Rb3 {[%clk 0:00:12.6]} 49... Kh2
{[%clk 0:00:06]} 50. b6 {[%clk 0:00:06]} 50... g2+ {[%clk 0:00:06.6]} 51. Ke1
{[%clk 0:00:02.9]} 51... g1=Q# {[%clk 0:00:07.5]} 0-1

[Event "Early-Titled-Tuesday-Blitz-February-06-2024"]
[Site "Chess.com"]
[Date "2024.02.06"]
[Round "2"]
[White "Hasangatin_Ramil"]
[Black "Jospem"]
[Result "0-1"]
[WhiteElo "2663"]
[BlackElo "3058"]
[TimeControl "180+1"]
[EndTime "8:18:08 PST"]
[Termination "Jospem won on time"]

1. e4 {[%clk 0:03:00.9]} 1... c5 {[%clk 0:03:00.6]} 2. Nf3 {[%clk 0:03:01.1]}
2... d6 {[%clk 0:03:01.2]} 3. d4 {[%clk 0:03:00.9]} 3... cxd4 {[%clk 0:03:02.1]}
4. Qxd4 {[%clk 0:03:01]} 4... a6 {[%clk 0:03:03]} 5. Be3 {[%clk 0:03:00.1]} 5...
Nf6 {[%clk 0:03:02.9]} 6. Nc3 {[%clk 0:02:59.4]} 6... Nc6 {[%clk 0:03:03.4]} 7.
Qb6 {[%clk 0:02:59]} 7... Qxb6 {[%clk 0:02:37.9]} 8. Bxb6 {[%clk 0:02:59.9]}
8... Bg4 {[%clk 0:02:38.6]} 9. Nd2 {[%clk 0:02:54.8]} 9... Be6 {[%clk 0:02:30]}
10. O-O-O {[%clk 0:02:44.1]} 10... Rc8 {[%clk 0:02:29]} 11. Bc4 {[%clk
0:02:33.3]} 11... g6 {[%clk 0:02:28.1]} 12. Bxe6 {[%clk 0:02:32.4]} 12... fxe6
{[%clk 0:02:29]} 13. f3 {[%clk 0:02:27.3]} 13... Bg7 {[%clk 0:02:29]} 14. Kb1
{[%clk 0:02:19]} 14... Kf7 {[%clk 0:02:28.8]} 15. Be3 {[%clk 0:02:14.8]} 15...
b5 {[%clk 0:02:28.7]} 16. Nb3 {[%clk 0:02:14.8]} 16... Ne5 {[%clk 0:02:28]} 17.
Bd4 {[%clk 0:02:13.4]} 17... Nc4 {[%clk 0:02:27.9]} 18. Nd2 {[%clk 0:02:11.9]}
18... Nd7 {[%clk 0:02:23.9]} 19. Bxg7 {[%clk 0:02:10.8]} 19... Kxg7 {[%clk
0:02:24.8]} 20. Nxc4 {[%clk 0:02:11.2]} 20... Rxc4 {[%clk 0:02:25.7]} 21. Ne2
{[%clk 0:02:10.5]} 21... Rhc8 {[%clk 0:02:20.2]} 22. c3 {[%clk 0:02:10]} 22...
Kf7 {[%clk 0:02:20.5]} 23. Rd2 {[%clk 0:02:08.8]} 23... a5 {[%clk 0:02:14.5]}
24. Rhd1 {[%clk 0:02:07.5]} 24... Rb8 {[%clk 0:02:06.6]} 25. Rd4 {[%clk
0:02:02.1]} 25... Rc5 {[%clk 0:02:05.7]} 26. Nc1 {[%clk 0:02:02.2]} 26... Rc7
{[%clk 0:01:58.6]} 27. R4d2 {[%clk 0:01:55.9]} 27... Ne5 {[%clk 0:01:58.3]} 28.
Re2 {[%clk 0:01:55]} 28... Nc4 {[%clk 0:01:56.9]} 29. Nb3 {[%clk 0:01:53.6]}
29... b4 {[%clk 0:01:38.3]} 30. cxb4 {[%clk 0:01:44.6]} 30... Rxb4 {[%clk
0:01:39.2]} 31. Ka1 {[%clk 0:01:38.4]} 31... a4 {[%clk 0:01:29.4]} 32. Nd4
{[%clk 0:01:28.7]} 32... a3 {[%clk 0:01:22.2]} 33. b3 {[%clk 0:01:28.6]} 33...
Nb2 {[%clk 0:01:22.7]} 34. Rxb2 {[%clk 0:01:28.7]} 34... axb2+ {[%clk
0:01:23.6]} 35. Kxb2 {[%clk 0:01:29.2]} 35... Rb6 {[%clk 0:01:15.9]} 36. a3
{[%clk 0:01:25.7]} 36... e5 {[%clk 0:01:12.5]} 37. Ne2 {[%clk 0:01:25.6]} 37...
e6 {[%clk 0:01:08.6]} 38. b4 {[%clk 0:01:24.7]} 38... Ke7 {[%clk 0:01:04.4]} 39.
Kb3 {[%clk 0:01:24.6]} 39... Rbc6 {[%clk 0:00:52.9]} 40. Rd2 {[%clk 0:01:17.2]}
40... Rc8 {[%clk 0:00:53.5]} 41. b5 {[%clk 0:01:16]} 41... Rc5 {[%clk
0:00:52.1]} 42. a4 {[%clk 0:01:16.2]} 42... d5 {[%clk 0:00:52.2]} 43. Rd3 {[%clk
0:00:59]} 43... d4 {[%clk 0:00:43.2]} 44. Kb4 {[%clk 0:00:48.8]} 44... Rc2
{[%clk 0:00:40.1]} 45. Ng3 {[%clk 0:00:40.3]} 45... h5 {[%clk 0:00:40.3]} 46.
Nf1 {[%clk 0:00:33.2]} 46... Rb2+ {[%clk 0:00:31.8]} 47. Ka3 {[%clk 0:00:26.6]}
47... Rxg2 {[%clk 0:00:24]} 48. Nd2 {[%clk 0:00:26.1]} 48... Rxh2 {[%clk
0:00:18.4]} 49. b6 {[%clk 0:00:24.5]} 49... Rh1 {[%clk 0:00:18.6]} 50. b7 {[%clk
0:00:21.2]} 50... Rb8 {[%clk 0:00:18.9]} 51. Rb3 {[%clk 0:00:21.7]} 51... h4
{[%clk 0:00:19.2]} 52. a5 {[%clk 0:00:21]} 52... Ra1+ {[%clk 0:00:18.3]} 53. Kb4
{[%clk 0:00:20.2]} 53... Rxb7+ {[%clk 0:00:18.7]} 0-1

[Event "Early-Titled-Tuesday-Blitz-February-06-2024"]
[Site "Chess.com"]
[Date "2024.02.06"]
[Round "2"]
[White "Vaibhavraut99"]
[Black "DrCeltic"]
[Result "0-1"]
[WhiteElo "2720"]
[BlackElo "2540"]
[TimeControl "180+1"]
[EndTime "8:18:08 PST"]
[Termination "DrCeltic won by resignation"]

1. e4 {[%clk 0:03:00.9]} 1... c5 {[%clk 0:02:59.7]} 2. Nf3 {[%clk 0:02:59.8]}
2... e6 {[%clk 0:03:00]} 3. b3 {[%clk 0:02:59.8]} 3... b6 {[%clk 0:03:00.2]} 4.
Bb2 {[%clk 0:02:55.2]} 4... Bb7 {[%clk 0:03:00.5]} 5. Nc3 {[%clk 0:02:48.7]}
5... Nf6 {[%clk 0:03:00.3]} 6. e5 {[%clk 0:02:39.9]} 6... Nd5 {[%clk 0:03:00.5]}
7. Nxd5 {[%clk 0:02:36.9]} 7... Bxd5 {[%clk 0:03:01.4]} 8. Be2 {[%clk 0:02:35]}
8... Be7 {[%clk 0:03:01.1]} 9. O-O {[%clk 0:02:34.9]} 9... O-O {[%clk
0:03:01.3]} 10. c4 {[%clk 0:02:34.4]} 10... Bb7 {[%clk 0:03:00.7]} 11. d4 {[%clk
0:02:34.3]} 11... cxd4 {[%clk 0:03:01.1]} 12. Qxd4 {[%clk 0:02:33.8]} 12... Nc6
{[%clk 0:03:01.1]} 13. Qe3 {[%clk 0:02:23.2]} 13... f5 {[%clk 0:02:32.6]} 14.
exf6 {[%clk 0:02:17.9]} 14... Bxf6 {[%clk 0:02:32.7]} 15. Bxf6 {[%clk 0:02:18]}
15... Qxf6 {[%clk 0:02:33.5]} 16. Rad1 {[%clk 0:02:16.3]} 16... Rad8 {[%clk
0:02:32.4]} 17. Rd6 {[%clk 0:02:13.1]} 17... Ne7 {[%clk 0:02:10]} 18. Qd2 {[%clk
0:02:02]} 18... Bc6 {[%clk 0:02:03.7]} 19. Nd4 {[%clk 0:01:59.1]} 19... Nf5
{[%clk 0:01:21.3]} 20. Nxc6 {[%clk 0:01:36.8]} 20... dxc6 {[%clk 0:01:21.3]} 21.
Rd3 {[%clk 0:01:25.9]} 21... Nd4 {[%clk 0:01:19.2]} 22. Bg4 {[%clk 0:01:18.2]}
22... c5 {[%clk 0:01:18.7]} 23. Qe3 {[%clk 0:01:11.8]} 23... Qg6 {[%clk
0:01:15.2]} 24. Qg3 {[%clk 0:00:32]} 24... e5 {[%clk 0:00:37.5]} 25. Re3 {[%clk
0:00:25.3]} 25... Rf4 {[%clk 0:00:33.7]} 26. Bh3 {[%clk 0:00:20.2]} 26... Qf6
{[%clk 0:00:10.4]} 27. Bg4 {[%clk 0:00:19.9]} 27... g6 {[%clk 0:00:09.1]} 28. h3
{[%clk 0:00:16.9]} 28... Rf8 {[%clk 0:00:09.4]} 29. Bd1 {[%clk 0:00:08.1]} 29...
Nf5 {[%clk 0:00:08.7]} 30. Qxf4 {[%clk 0:00:03.8]} 30... exf4 {[%clk 0:00:08.7]}
31. Rd3 {[%clk 0:00:04.2]} 31... Nd4 {[%clk 0:00:09.1]} 32. Bg4 {[%clk
0:00:04.3]} 32... h5 {[%clk 0:00:09.1]} 33. Bd1 {[%clk 0:00:04.4]} 33... f3
{[%clk 0:00:09.6]} 34. g3 {[%clk 0:00:04.3]} 34... Qf5 {[%clk 0:00:09.4]} 35.
Re3 {[%clk 0:00:02.6]} 35... Qxh3 {[%clk 0:00:09.4]} 36. Bxf3 {[%clk 0:00:03.3]}
36... Nxf3+ {[%clk 0:00:09.8]} 37. Rxf3 {[%clk 0:00:03.9]} 37... Rxf3 {[%clk
0:00:10.2]} 38. Re1 {[%clk 0:00:04.8]} 38... h4 {[%clk 0:00:10.4]} 0-1

[Event "Early-Titled-Tuesday-Blitz-February-06-2024"]
[Site "Chess.com"]
[Date "2024.02.06"]
[Round "2"]
[White "Harsha_Bharathakoti"]
[Black "VitaliyChayka"]
[Result "1-0"]
[WhiteElo "2923"]
[BlackElo "2396"]
[TimeControl "180+1"]
[EndTime "8:18:11 PST"]
[Termination "Harsha_Bharathakoti won by resignation"]

1. Nf3 {[%clk 0:03:00.9]} 1... d6 {[%clk 0:03:00.3]} 2. d4 {[%clk 0:03:00.9]}
2... Nd7 {[%clk 0:03:00.7]} 3. c4 {[%clk 0:03:01.6]} 3... e5 {[%clk 0:03:01.1]}
4. Nc3 {[%clk 0:03:02.4]} 4... Ngf6 {[%clk 0:03:01.3]} 5. g3 {[%clk 0:03:03]}
5... Be7 {[%clk 0:03:01.5]} 6. Bg2 {[%clk 0:03:03.7]} 6... O-O {[%clk
0:03:02.3]} 7. O-O {[%clk 0:03:04.5]} 7... c6 {[%clk 0:03:03]} 8. Qc2 {[%clk
0:03:05.3]} 8... a6 {[%clk 0:03:03.2]} 9. Rd1 {[%clk 0:03:06]} 9... Qc7 {[%clk
0:03:00.8]} 10. b3 {[%clk 0:03:04.1]} 10... b5 {[%clk 0:03:00.7]} 11. Bb2 {[%clk
0:03:04.5]} 11... Bb7 {[%clk 0:02:58]} 12. e3 {[%clk 0:02:59.8]} 12... Rfe8
{[%clk 0:02:54.8]} 13. Rac1 {[%clk 0:02:59.2]} 13... b4 {[%clk 0:02:49.3]} 14.
Na4 {[%clk 0:02:52.1]} 14... c5 {[%clk 0:02:49.7]} 15. dxe5 {[%clk 0:02:26.2]}
15... dxe5 {[%clk 0:02:48.7]} 16. Nd2 {[%clk 0:02:14.8]} 16... Rad8 {[%clk
0:02:40.9]} 17. Ne4 {[%clk 0:02:08.4]} 17... Bf8 {[%clk 0:02:15.6]} 18. Nxf6+
{[%clk 0:02:01.7]} 18... Nxf6 {[%clk 0:02:15.3]} 19. Rxd8 {[%clk 0:02:01.2]}
19... Rxd8 {[%clk 0:02:14.9]} 20. Bxe5 {[%clk 0:01:44.8]} 20... Qxe5 {[%clk
0:02:14.2]} 21. Bxb7 {[%clk 0:01:45.5]} 21... h5 {[%clk 0:02:12.9]} 22. Rd1
{[%clk 0:01:38.5]} 22... Rxd1+ {[%clk 0:02:08.4]} 23. Qxd1 {[%clk 0:01:39.4]}
23... h4 {[%clk 0:02:08.6]} 24. Bf3 {[%clk 0:01:15.5]} 24... Qf5 {[%clk
0:01:56.8]} 25. g4 {[%clk 0:01:13]} 25... Qe5 {[%clk 0:01:55.6]} 26. h3 {[%clk
0:01:13.6]} 26... Bd6 {[%clk 0:01:55.1]} 27. Bg2 {[%clk 0:01:12.7]} 27... Bc7
{[%clk 0:01:41.2]} 28. Kf1 {[%clk 0:01:01.8]} 28... a5 {[%clk 0:01:27.5]} 29.
Qb1 {[%clk 0:00:41.5]} 29... g6 {[%clk 0:01:24.5]} 30. Nb2 {[%clk 0:00:39.6]}
30... Qc3 {[%clk 0:00:57.2]} 31. Nd3 {[%clk 0:00:39.8]} 31... Bd6 {[%clk
0:00:53.5]} 32. Ke2 {[%clk 0:00:40.4]} 32... Nd7 {[%clk 0:00:48.4]} 33. Qb2
{[%clk 0:00:40.7]} 33... Ne5 {[%clk 0:00:44.2]} 34. Qxc3 {[%clk 0:00:40.7]}
34... bxc3 {[%clk 0:00:44.8]} 35. Ne1 {[%clk 0:00:39.1]} 35... g5 {[%clk
0:00:41.2]} 36. Nc2 {[%clk 0:00:36.9]} 36... Kf8 {[%clk 0:00:36.4]} 37. Be4
{[%clk 0:00:37.6]} 37... f6 {[%clk 0:00:33.4]} 38. Na3 {[%clk 0:00:38.4]} 38...
Nd7 {[%clk 0:00:27]} 39. Bf5 {[%clk 0:00:32.6]} 39... Nb6 {[%clk 0:00:24.6]} 40.
Kd3 {[%clk 0:00:33]} 40... Be5 {[%clk 0:00:24.6]} 41. Nb5 {[%clk 0:00:32.9]}
41... a4 {[%clk 0:00:21.5]} 42. Nxc3 {[%clk 0:00:33.4]} 42... axb3 {[%clk
0:00:21]} 43. axb3 {[%clk 0:00:34.3]} 43... Ke7 {[%clk 0:00:20.3]} 44. Ne4
{[%clk 0:00:34.7]} 44... Bd6 {[%clk 0:00:13.3]} 45. b4 {[%clk 0:00:35.3]} 45...
Na4 {[%clk 0:00:11.6]} 46. b5 {[%clk 0:00:35.9]} 46... Nb6 {[%clk 0:00:11.2]}
47. Nc3 {[%clk 0:00:36.5]} 47... Be5 {[%clk 0:00:10.6]} 48. Ne2 {[%clk
0:00:35.9]} 48... Bh2 {[%clk 0:00:10.2]} 49. Be4 {[%clk 0:00:36.3]} 49... Kd6
{[%clk 0:00:10]} 50. Bh7 {[%clk 0:00:36.9]} 50... Ke5 {[%clk 0:00:09.9]} 51. Bg8
{[%clk 0:00:37.5]} 51... Kd6 {[%clk 0:00:08.8]} 52. f4 {[%clk 0:00:37.4]} 52...
gxf4 {[%clk 0:00:07.6]} 53. exf4 {[%clk 0:00:38.3]} 53... Nd7 {[%clk 0:00:06.1]}
54. Ke4 {[%clk 0:00:38.4]} 54... Nf8 {[%clk 0:00:03.2]} 55. Kf3 {[%clk
0:00:38.7]} 55... Ng6 {[%clk 0:00:01.3]} 56. Bh7 {[%clk 0:00:39.4]} 56... Ne7
{[%clk 0:00:01.1]} 57. Kg2 {[%clk 0:00:39.7]} 57... Bg3 {[%clk 0:00:01.7]} 58.
Nxg3 {[%clk 0:00:40.4]} 58... hxg3 {[%clk 0:00:02.6]} 59. Kxg3 {[%clk
0:00:41.3]} 59... Nc8 {[%clk 0:00:03]} 60. Bd3 {[%clk 0:00:41.7]} 60... Nb6
{[%clk 0:00:03.9]} 61. h4 {[%clk 0:00:42.1]} 61... Ke7 {[%clk 0:00:04.8]} 62. h5
{[%clk 0:00:42.8]} 62... Kf7 {[%clk 0:00:05.7]} 63. g5 {[%clk 0:00:43.6]} 63...
Kg7 {[%clk 0:00:06.6]} 64. Kg4 {[%clk 0:00:44.2]} 64... fxg5 {[%clk 0:00:07.5]}
65. fxg5 {[%clk 0:00:44.2]} 65... Nd7 {[%clk 0:00:08.3]} 66. h6+ {[%clk
0:00:45.1]} 66... Kg8 {[%clk 0:00:08.4]} 67. Kf5 {[%clk 0:00:46]} 67... Nf8
{[%clk 0:00:08.7]} 68. Be4 {[%clk 0:00:46.7]} 68... Nd7 {[%clk 0:00:08.8]} 69.
Bd5+ {[%clk 0:00:47.6]} 69... Kh8 {[%clk 0:00:09.2]} 70. g6 {[%clk 0:00:47.7]}
70... Nf6 {[%clk 0:00:06.1]} 71. g7+ {[%clk 0:00:48.6]} 71... Kh7 {[%clk
0:00:06.4]} 72. Kxf6 {[%clk 0:00:49.5]} 72... Kxh6 {[%clk 0:00:06.2]} 73. g8=Q
{[%clk 0:00:50.3]} 1-0